[Event "WEM-KT 2018"]
[Site "Illertissen"]
[Date "2018.08.31"]
[Round "7"]
[White "Schulz, Volker"]
[Black "Handel, Oliver"]
[Result "0-1"]
[ECO "C52"]
[WhiteElo "2169"]
[BlackElo "1839"]
[Annotator "NA"]
[PlyCount "92"]
[EventDate "2018.08.25"]
[EventType "tourn"]
[EventCountry "GER"]
[SourceTitle "playchess.com"]
[Source "ChessBase"]
[SourceQuality "1"]
[TimeControl "40/6000+30:3000+30"]

{[%evp 13,85,-5,-14,-17,45,0,22,-12,-16,-19,-9,-30,4,0,19,14,50,42,48,35,55,34,47,6,37,31,18,0,19,-20,63,32767,32767,-98,32767,32767,-220,-222,-219,-222,-225,32767,-237,-247,-231,-615,-234,-290,-266,-332,-340,-470,-321,-324,-326,-415,-424,-410,-475,32767,-487,-840,-428,-400,32767,-407,-456,-565,-718,-912,-557,-606,-693,-1343]} 1. e4 {[%emt 0:09:35]} e5 {[%emt 0:10:15]} 2. Nf3 {[%emt 0:00:07]} Nc6 {[%emt 0:00:05]} 3. Bc4 {[%emt 0:00:11]} Bc5 {[%emt 0:00:24]} 4. b4 {[%emt 0:00:14]} Bxb4 {[%emt 0:01:44]} 5. c3 {[%emt 0:00:06]} Ba5 {[%emt 0:00:08]} 6. d4 {[%emt 0:00:39]} exd4 {[%emt 0:09:08]} 7. Qb3 {[%emt 0:01:40]} Qe7 {[%emt 0:05:08]} 8. O-O $1 {[%emt 0:00:39]} d6 {[%emt 0:10:43] LiveBook: 5 Games} 9. cxd4 {[%emt 0:07:51] C52: Evans Gambit Accepted: 5 c3 Ba5} Bb6 $1 {[%emt 0:00:34]} 10. Bb2 {[%emt 0:00:54]} (10. Bb5 Bd7 11. d5 Nb8 12. Bc4 Bg4 13. Bb2 f6 14. a4 a5 15. Nd4 Nd7 16. Qg3 Bxd4 17. Bxd4 {1-0 (62) Antal,G (2549)-Abramciuc,M (2357) Arad 2018}) 10... Na5 {[%emt 0:01:47]} 11. Qc3 {[%emt 0:02:24]} Nxc4 {[%emt 0:04:25]} 12. Qxc4 {[%emt 0:00:03]} Bg4 {[%emt 0:05:52]} 13. Nbd2 {[%emt 0:01:31]} Nh6 {[%emt 0:03:31]} 14. a4 $146 {[%emt 0:06:10]} ({Predecessor:} 14. e5 O-O 15. Rfe1 Qd7 16. d5 Qf5 {0-1 (51) Cernousek,L (1640)-Soukup,J (1870) Svetla nad Sazavou 1995}) 14... a6 {[%emt 0:03:42]} 15. a5 {[%emt 0:00:45]} Ba7 {[%emt 0:00:07]} 16. Rac1 {[%emt 0:08:42]} Rc8 {[%emt 0:01:29]} 17. Qb3 {[%emt 0:08:23]} Rb8 {[%emt 0:02:31]} 18. Qc3 {[%emt 0:00:45]} Rc8 {[%emt 0:00:58]} 19. Rfe1 {[%emt 0:04:00]} O-O $1 {[%emt 0:01:29]} 20. Nc4 {[%emt 0:02:50]} Bd7 {[%emt 0:07:14]} 21. Ba3 {[%emt 0:09:08]} Qe6 {[%emt 0:10:15]} (21... Rfe8 $11) 22. d5 {[%emt 0:04:28]} Qg6 {[%emt 0:02:27] [#]} 23. e5 {[%emt 0:04:53]} (23. Nce5 $1 $11 {[%mdl 512]} dxe5 24. Bxf8) 23... Rfe8 {[%emt 0:02:12]} 24. Qb4 {[%emt 0:03:50] [#]} Ng4 $1 {[%emt 0:03:32]} 25. Ne3 {[%emt 0:01:55]} Nxe5 {[%emt 0:02:00]} 26. Nxe5 {[%emt 0:01:16]} Rxe5 {[%emt 0:00:26]} ({Inferior is} 26... dxe5 27. Qxb7 Bd4 28. d6 $11) 27. Qxb7 {[%emt 0:01:16]} Bxe3 {[%emt 0:01:48]} 28. fxe3 {[%emt 0:00:13]} Bh3 {[%emt 0:00:33]} 29. Qb2 $2 {[%emt 0:01:14] [#]} (29. Re2) 29... Rxd5 $2 {[%emt 0:01:21]} (29... Bxg2 $1 {[%mdl 512]} 30. Qxg2 Rg5) 30. Kh1 {[%emt 0:01:41]} Qe4 {[%emt 0:01:46]} 31. Qe2 {[%emt 0:02:35]} Rxa5 {[%emt 0:00:51]} 32. Rc4 {[%emt 0:01:10]} (32. Rc3 {might work better.}) 32... Qb7 {[%emt 0:01:23]} 33. Bc1 {[%emt 0:04:09]} Be6 {[%emt 0:02:22]} 34. Rh4 {[%emt 0:00:54]} Ra2 {[%emt 0:01:31]} 35. Bd2 {[%emt 0:01:15]} c5 {[%emt 0:01:19]} 36. Qd3 {[%emt 0:00:19]} g6 {[%emt 0:01:38]} 37. Qxd6 {[%emt 0:00:33]} (37. Rg1 $142) 37... Bd5 {[%emt 0:01:14]} 38. e4 {[%emt 0:00:21]} Rxd2 {[%emt 0:00:18]} 39. exd5 {[%emt 0:01:13]} Rxd5 {[%emt 0:00:14]} 40. Qg3 {[%emt 0:06:11]} c4 {[%emt 0:02:15]} 41. Rhe4 {[%emt 0:52:23]} Qc6 {[%emt 0:52:57]} 42. Qf2 {[%emt 0:09:32] [#]} Rd1 $1 {[%emt 0:04:46]} 43. Qc2 $19 {[%emt 0:00:00]} Rxe1+ {[%emt 0:00:00]} 44. Rxe1 {[%emt 0:00:00]} c3 {[%emt 0:00:00]} 45. h3 {[%emt 0:00:00]} Rd8 {[%emt 0:00:00]} 46. Qb3 {[%emt 0:00:00]} c2 {[%emt 0:00:00]} 0-1

[Event "WEM-KT 2018"]
[Site "Illertissen"]
[Date "2018.08.31"]
[Round "7"]
[White "Engelhart, Achim"]
[Black "Laengl, Juergen"]
[Result "1/2-1/2"]
[ECO "C04"]
[WhiteElo "2126"]
[BlackElo "2223"]
[Annotator "ChessBase"]
[PlyCount "116"]
[EventDate "2018.08.25"]
[EventType "tourn"]
[EventCountry "GER"]
[SourceTitle "playchess.com"]
[Source "ChessBase"]
[SourceQuality "1"]
[TimeControl "40/6000+30:3000+30"]

1. e4 {[%emt 0:09:32]} e6 {[%emt 0:09:41]} 2. d4 {[%emt 0:00:07]} d5 {[%emt 0:00:06]} 3. Nd2 {[%emt 0:00:05]} Nc6 {[%emt 0:00:09]} 4. Ngf3 {[%emt 0:00:08]} Nf6 {[%emt 0:00:11]} 5. e5 {[%emt 0:00:07]} Ng4 {[%emt 0:00:17]} 6. h3 {[%emt 0:14:44]} Nh6 {[%emt 0:02:47]} 7. Be2 {[%emt 0:00:26]} f6 {[%emt 0:00:30]} 8. exf6 {[%emt 0:01:08]} Qxf6 {[%emt 0:00:11]} 9. Nf1 {[%emt 0:01:46]} Nf7 {[%emt 0:02:24]} 10. Ne3 {[%emt 0:01:36]} Bd7 {[%emt 0:26:47]} 11. Ng4 {[%emt 0:24:47]} Qe7 {[%emt 0:00:19]} 12. c3 {[%emt 0:08:54]} Qd6 {[%emt 0:16:28]} 13. g3 {[%emt 0:01:09]} h5 {[%emt 0:09:56]} 14. Bf4 {[%emt 0:01:18]} hxg4 {[%emt 0:04:43]} 15. Bxd6 {[%emt 0:00:05]} gxf3 {[%emt 0:00:07]} 16. Bxf8 {[%emt 0:00:34]} fxe2 {[%emt 0:00:08]} 17. Qxe2 {[%emt 0:00:19]} Rxf8 {[%emt 0:00:15]} 18. O-O-O {[%emt 0:03:24]} O-O-O {[%emt 0:00:10]} 19. f4 {[%emt 0:03:07]} Nd6 {[%emt 0:01:58]} 20. h4 {[%emt 0:04:30]} Ne4 {[%emt 0:00:09]} 21. Rdg1 {[%emt 0:00:40]} Ne7 {[%emt 0:06:41]} 22. h5 {[%emt 0:02:25]} c5 {[%emt 0:00:19]} 23. dxc5 {[%emt 0:00:46]} e5 {[%emt 0:06:05]} 24. fxe5 {[%emt 0:03:21]} Rf2 {[%emt 0:00:20]} 25. Qd1 {[%emt 0:03:38]} Bb5 {[%emt 0:02:32]} 26. h6 {[%emt 0:05:32]} gxh6 {[%emt 0:00:12]} 27. Rxh6 {[%emt 0:00:05]} Nxc5 {[%emt 0:05:16]} 28. Qg4+ {[%emt 0:03:10]} Nf5 {[%emt 0:03:46]} 29. Rf6 {[%emt 0:02:19]} Bd3 {[%emt 0:02:31]} 30. Rh1 {[%emt 0:09:07]} Kb8 {[%emt 0:02:25]} 31. Rxf5 {[%emt 0:02:24]} Bxf5 {[%emt 0:00:24]} 32. Qg7 {[%emt 0:00:56]} Ne6 {[%emt 0:06:11]} 33. Qf6 {[%emt 0:01:55]} d4 {[%emt 0:00:36]} 34. Rh8 {[%emt 0:00:42]} Rf1+ {[%emt 0:00:07]} 35. Kd2 {[%emt 0:00:07]} dxc3+ {[%emt 0:00:24]} 36. Kxc3 {[%emt 0:00:21]} Rf3+ {[%emt 0:01:44]} 37. Kb4 {[%emt 0:00:10]} a5+ {[%emt 0:00:45]} 38. Kxa5 {[%emt 0:00:32]} Rxh8 {[%emt 0:00:05]} 39. Qxh8+ {[%emt 0:00:02]} Ka7 {[%emt 0:00:04]} 40. Qh4 {[%emt 0:02:11]} Re3 {[%emt 0:01:14]} 41. Qf6 {[%emt 0:23:46]} Rf3 {[%emt 0:34:28]} 42. b3 {[%emt 0:04:39]} Bg4 {[%emt 0:00:13]} 43. Qh4 {[%emt 0:00:47]} Bf5 {[%emt 0:01:33]} 44. Qf6 {[%emt 0:00:10]} Bg4 {[%emt 0:00:27]} 45. Qh4 {[%emt 0:02:45]} b6+ {[%emt 0:01:20]} 46. Kb4 {[%emt 0:00:15]} Bf5 {[%emt 0:02:05]} 47. Ka3 {[%emt 0:01:00]} Nc5 {[%emt 0:03:25]} 48. g4 {[%emt 0:00:51]} Be6 {[%emt 0:02:14]} 49. Qe7+ {[%emt 0:02:49]} Ka6 {[%emt 0:00:36]} 50. g5 {[%emt 0:00:50]} Rg3 {[%emt 0:01:15]} 51. Kb2 {[%emt 0:02:25]} Rg2+ {[%emt 0:00:43]} 52. Ka3 {[%emt 0:00:26]} Rg3 {[%emt 0:00:13]} 53. Kb2 {[%emt 0:00:01]} Rg2+ {[%emt 0:01:46]} 54. Ka3 {[%emt 0:00:01]} Rg3 {[%emt 0:00:56]} 55. Qe8 {[%emt 0:00:41]} Rxg5 {[%emt 0:00:35]} 56. Qa8+ {[%emt 0:00:05]} Kb5 {[%emt 0:00:01]} 57. Qe8+ {[%emt 0:00:04]} Ka6 {[%emt 0:00:09]} 58. Qe7 Rg4 {[%emt 0:00:01]} 1/2-1/2

[Event "WEM-KT 2018"]
[Site "Illertissen"]
[Date "2018.08.31"]
[Round "7"]
[White "Hermann, Tobias"]
[Black "Bossinger, Patrick"]
[Result "1/2-1/2"]
[ECO "A16"]
[WhiteElo "2002"]
[BlackElo "2039"]
[Annotator "NA RC"]
[PlyCount "62"]
[EventDate "2018.08.25"]
[EventType "tourn"]
[EventCountry "GER"]
[SourceTitle "playchess.com"]
[Source "ChessBase"]
[SourceQuality "1"]
[TimeControl "40/6000+30:3000+30"]

{[%evp 13,60,10,13,8,43,8,27,19,50,30,77,54,100,112,130,126,113,129,133,133,32767,32767,214,32767,32767,131,168,103,124,117,130,121,128,120,32767,32767,32767,32767,32767,32767,147,152,177,145,138,131,150,110,105]} 1. c4 {[%emt 0:09:32]} Nf6 {[%emt 0:09:49]} 2. Nc3 {[%emt 0:00:04]} g6 {[%emt 0:00:57]} 3. g3 {[%emt 0:00:06]} d5 {[%emt 0:01:45]} 4. cxd5 {[%emt 0:00:39]} Nxd5 {[%emt 0:00:23]} 5. Bg2 {[%emt 0:00:06]} Nxc3 {[%emt 0:03:04]} 6. bxc3 {[%emt 0:00:57]} Bg7 {[%emt 0:01:04]} 7. Nf3 {[%emt 0:03:17] LiveBook: 169 Games} O-O {[%emt 0:02:10]} 8. O-O {[%emt 0:02:22]} Nd7 {[%emt 0:05:51]} 9. Rb1 {[%emt 0:10:17]} Nb6 {[%emt 0:02:40] A16: English Opening: 1...Nf6 with ...d5} (9... c5 10. Qa4 Qc7 11. d3 e5 12. Nd2 a6 13. c4 f5 14. Rb3 h6 15. Bb2 Kh7 16. Rb1 Ra7 17. Bc3 b6 {0-1 (55) Nielsen,P (2670)-Areshchenko,A (2664) Germany 2011}) 10. Qc2 {[%emt 0:04:02]} Bf5 {[%emt 0:08:35]} 11. d3 {[%emt 0:01:27]} Qd7 {[%emt 0:01:45]} 12. Bb2 $146 {[%emt 0:15:21]} ({Predecessor:} 12. c4 Rab8 13. Bb2 Qa4 14. Qb3 Qa5 15. Bxg7 Kxg7 16. Nd4 Bd7 17. Nb5 {1-0 (66) Wolske,G (2120)-Szeberenyi,A (2225) Balatonbereny 1997}) 12... c6 {[%emt 0:17:42]} 13. c4 {[%emt 0:07:01]} Rab8 {[%emt 0:01:50]} 14. c5 {[%emt 0:14:39]} Na8 {[%emt 0:00:32]} 15. Bxg7 {[%emt 0:01:29]} Kxg7 {[%emt 0:00:25]} 16. Rb4 {[%emt 0:00:14]} Qc7 {[%emt 0:20:30]} 17. Rfb1 {[%emt 0:00:30]} b5 {[%emt 0:00:30]} (17... b6 $16 18. Qb2+ f6) 18. cxb6 {[%emt 0:00:30]} Rxb6 {[%emt 0:00:30]} 19. Nd4 {[%emt 0:00:30]} c5 {[%emt 0:00:30]} 20. Bxa8 {[%emt 0:00:30]} (20. Nxf5+ $18 gxf5 21. Rxb6 axb6 22. Qc3+ Kg8 23. Qa3) 20... Rxa8 {[%emt 0:00:30]} 21. Nxf5+ {[%emt 0:00:30]} gxf5 {[%emt 0:00:30]} 22. Rc4 {[%emt 0:00:30]} Qe5 {[%emt 0:00:30]} 23. Rb3 {[%emt 0:00:30]} Qe6 {[%emt 0:00:30]} 24. Rxc5 {[%emt 0:00:30]} Rxb3 {[%emt 0:00:30]} 25. axb3 {[%emt 0:00:30]} Rb8 {[%emt 0:00:30]} 26. Rc4 {[%emt 0:00:30]} Rb6 {[%emt 0:00:30]} 27. b4 {[%emt 0:00:30]} Ra6 {[%emt 0:00:30]} 28. Qc3+ {[%emt 0:00:30]} f6 {[%emt 0:00:30]} 29. Qb2 {[%emt 0:00:30]} Rb6 {[%emt 0:00:30]} 30. Qa2 $16 {[%emt 0:00:30]} Ra6 {[%emt 0:00:30]} 31. Qb2 {[%emt 0:00:30]} Rb6 {[%emt 0:00:30]} 1/2-1/2

[Event "WEM-KT 2018"]
[Site "Illertissen"]
[Date "2018.08.31"]
[Round "7"]
[White "Guenther, Stefan"]
[Black "Jooss, Achim"]
[Result "1-0"]
[ECO "E04"]
[WhiteElo "1907"]
[BlackElo "1749"]
[Annotator "NA RC"]
[PlyCount "53"]
[EventDate "2018.08.25"]
[EventType "tourn"]
[EventCountry "GER"]
[SourceTitle "playchess.com"]
[Source "ChessBase"]
[SourceQuality "1"]
[TimeControl "40/6000+30:3000+30"]

{[%evp 21,49,213,246,249,269,289,302,257,354,369,378,395,389,401,392,402,453,409,463,530,489,545,694,756,806,938,1335,1684,1767,1334]} 1. d4 {[%emt 0:09:34]} d5 {[%emt 0:09:47]} 2. c4 {[%emt 0:00:06]} c6 {[%emt 0:00:05]} 3. Nf3 {[%emt 0:00:04]} Nf6 {[%emt 0:00:37]} 4. g3 {[%emt 0:00:14]} e6 {[%emt 0:01:02]} 5. Bg2 {[%emt 0:00:09]} Nbd7 {[%emt 0:00:10]} 6. O-O {[%emt 0:00:20]} dxc4 {[%emt 0:00:37]} 7. Qc2 {[%emt 0:00:40] E04: Open Catalan: 5 Nf3} Bd6 {[%emt 0:00:44]} (7... b5 8. b3 cxb3 9. Qxc6 Rb8 10. axb3 Bb7 11. Qc2 Rc8 12. Qa2 Bd6 13. Bg5 O-O 14. Nbd2 Qc7 15. Qb1 a6 16. Bxf6 Nxf6 {½-½ (51) Dominguez Perez,L (2732)-Quesada Perez,Y (2631) Matanzas 2016}) 8. Nbd2 {[%emt 0:04:13]} b5 {[%emt 0:04:37]} 9. b3 {[%emt 0:12:40]} Bb7 $146 {[%emt 0:00:55]} ({Predecessor:} 9... c3 10. Qxc3 Bb7 11. e4 c5 12. Qd3 Be7 13. Qxb5 Qc8 14. Qd3 cxd4 15. e5 {1-0 (34) Tregubov,P (2615)-Gormally,D (2504) Cappelle-la-Grande 2000}) 10. bxc4 {[%emt 0:00:10]} b4 {[%emt 0:07:55]} 11. e4 {[%emt 0:08:31]} e5 {[%emt 0:03:21]} 12. c5 {[%emt 0:01:25]} Bc7 {[%emt 0:00:22] [#]} 13. d5 $1 {[%emt 0:04:02]} a5 {[%emt 0:05:47]} 14. Bb2 {[%emt 0:06:42]} O-O {[%emt 0:03:33]} 15. d6 {[%emt 0:01:10]} Bb8 {[%emt 0:00:15]} 16. Nxe5 {[%emt 0:03:50]} Ba7 {[%emt 0:00:14]} 17. Nxd7 {[%emt 0:02:54]} Nxd7 {[%emt 0:00:21]} 18. Bd4 {[%emt 0:01:18]} Qg5 {[%emt 0:00:24]} 19. f4 {[%emt 0:04:18]} Qh5 {[%emt 0:00:29]} 20. e5 {[%emt 0:02:56]} Rfe8 {[%emt 0:00:16]} 21. Rae1 {[%emt 0:04:22]} Re6 {[%emt 0:03:05]} 22. f5 {[%emt 0:04:52]} Rh6 {[%emt 0:00:09]} 23. h3 {[%emt 0:02:31]} g5 {[%emt 0:05:37]} 24. g4 {[%emt 0:05:07]} Qh4 $18 {[%emt 0:00:32]} 25. Ne4 {[%emt 0:00:10]} Ba6 {[%emt 0:14:31]} 26. Bf2 {[%emt 0:01:33]} Bxf1 {[%emt 0:00:22]} 27. Kxf1 {[%emt 0:02:48]} 1-0

[Event "WEM-KT 2018"]
[Site "Illertissen"]
[Date "2018.08.31"]
[Round "7"]
[White "Kohde, Janis"]
[Black "Schelberg, Martin"]
[Result "1-0"]
[ECO "E60"]
[WhiteElo "1803"]
[BlackElo "1727"]
[Annotator "NA RC"]
[PlyCount "64"]
[EventDate "2018.08.25"]
[EventType "tourn"]
[EventCountry "GER"]
[SourceTitle "playchess.com"]
[Source "ChessBase"]
[SourceQuality "1"]
[TimeControl "40/6000+30:3000+30"]

{[%evp 14,63,33,33,18,19,36,36,58,31,70,62,131,87,88,32767,32767,50,94,32767,32767,32767,32767,349,341,308,654,696,679,691,700,668,856,317,443,450,465,434,-108,674,690,413,681,762,1126,32767,32767,508,710,753,753,793]} 1. Nf3 {[%emt 0:09:34]} Nf6 {[%emt 0:09:47]} 2. e3 {[%emt 0:00:08]} g6 {[%emt 0:00:28]} 3. b3 {[%emt 0:00:07]} Bg7 {[%emt 0:00:37]} 4. Bb2 {[%emt 0:00:03]} O-O {[%emt 0:00:20]} 5. Be2 {[%emt 0:00:06]} d6 {[%emt 0:01:14]} 6. d4 {[%emt 0:02:12]} c5 {[%emt 0:03:02]} 7. O-O {[%emt 0:01:49]} Ne4 {[%emt 0:08:24]} 8. c4 {[%emt 0:03:20]} Nc6 {[%emt 0:05:48]} 9. Qc2 {[%emt 0:03:37] E60: King's Indian: Unusual lines and Fianchetto Variation without Nc3} (9. Qc1 cxd4 10. Nxd4 Nxd4 11. exd4 e5 12. Qe3 Ng5 13. dxe5 Bxe5 14. Bxe5 dxe5 15. Rd1 Qf6 16. Nc3 Ne6 {1-0 (40) Bellin,R (2355)-Rogers,J (2349) England 2011}) 9... f5 {[%emt 0:05:23]} 10. Rd1 $146 {[%emt 0:08:42]} ({Predecessor:} 10. a3 cxd4 11. exd4 Qb6 12. d5 Nd4 13. Nxd4 Bxd4 14. Bxd4 Qxd4 15. Ra2 Bd7 16. Qd3 Qb6 17. Nd2 Rac8 18. Rb2 Nf6 19. Nf3 {½-½ (19) Zachert,A (1673)-Jonas,A Germany 2002}) 10... Qc7 {[%emt 0:08:27]} 11. Nbd2 {[%emt 0:07:35]} Nb4 {[%emt 0:18:46]} 12. Qc1 $1 {[%emt 0:02:49]} Bh6 {[%emt 0:08:59]} 13. d5 {[%emt 0:10:39]} e5 {[%emt 0:09:43]} 14. dxe6 {[%emt 0:12:14]} Bxe6 {[%emt 0:04:05]} 15. a3 {[%emt 0:01:39]} Nc6 {[%emt 0:00:52]} 16. Nxe4 {[%emt 0:02:54]} fxe4 {[%emt 0:00:27]} 17. Nd2 {[%emt 0:00:22]} d5 {[%emt 0:09:48]} 18. cxd5 {[%emt 0:01:59]} Bxd5 {[%emt 0:03:05]} 19. Qxc5 {[%emt 0:02:30]} Qf7 $2 {[%emt 0:02:06] [#]} (19... Rad8 20. Nxe4 Bg7) 20. Nxe4 $1 {[%emt 0:01:12]} Bxb3 {[%emt 0:03:05]} 21. Rd3 {[%emt 0:04:29]} Be6 {[%emt 0:02:48]} 22. Nf6+ {[%emt 0:02:43]} ({Schwächer ist} 22. Qc3 Bg7 $18) 22... Kh8 {[%emt 0:01:08]} 23. Nd7+ {[%emt 0:02:53]} (23. Nh5+ $142 Kg8 24. e4) 23... Kg8 {[%emt 0:01:09]} (23... Bg7 {was necessary.} 24. Bxg7+ (24. Nxf8 Bxb2 25. Nxe6 Bxa1 $18) 24... Qxg7) 24. Nxf8 {[%emt 0:00:22]} Rxf8 {[%emt 0:00:10]} 25. Qc3 {[%emt 0:02:08]} Qxf2+ $2 {[%emt 0:01:16]} ({Better is} 25... Bg7 $18 26. Qxg7+ Qxg7 27. Bxg7 Kxg7) 26. Kh1 {[%emt 0:00:14]} Qxe2 {[%emt 0:01:32]} 27. Qh8+ {[%emt 0:01:12]} Kf7 {[%emt 0:00:12]} 28. Qf6+ {[%emt 0:01:41]} Ke8 {[%emt 0:00:14]} 29. Qxe6+ {[%emt 0:00:40]} Ne7 {[%emt 0:00:19]} 30. Qd7+ $18 {[%emt 0:01:48]} (30. Rdd1 $142 Qxb2 31. Rac1 Qxc1 32. Rxc1) 30... Kf7 {[%emt 0:00:14]} 31. Be5 {[%emt 0:02:51]} Qf2 {[%emt 0:01:30]} 32. Rdd1 {[%emt 0:00:33]} Kg8 {[%emt 0:00:00]} 1-0

[Event "WEM-KT 2018"]
[Site "Illertissen"]
[Date "2018.08.31"]
[Round "7"]
[White "Seidler, Ottmar"]
[Black "Wolf, Rainer"]
[Result "0-1"]
[ECO "E14"]
[WhiteElo "1706"]
[BlackElo "2044"]
[Annotator "NA RC"]
[PlyCount "52"]
[EventDate "2018.08.25"]
[EventType "tourn"]
[EventCountry "GER"]
[SourceTitle "playchess.com"]
[Source "ChessBase"]
[SourceQuality "1"]
[TimeControl "40/6000+30:3000+30"]

{[%evp 15,49,0,0,0,7,-2,0,-2,-2,-1,-4,-7,-7,-18,-7,-20,14,-40,-44,-63,-52,-141,32767,-293,-297,32767,-491,-602,-245,-258,-253,-261,-256,-29988,-29990,-29992]} 1. d4 {[%emt 0:09:36]} Nf6 {[%emt 0:09:47]} 2. c4 {[%emt 0:00:19]} e6 {[%emt 0:00:20]} 3. Nf3 {[%emt 0:00:26]} b6 {[%emt 0:00:51]} 4. Nc3 {[%emt 0:01:30]} Bb7 {[%emt 0:00:13]} 5. e3 {[%emt 0:02:19]} Be7 {[%emt 0:00:42]} 6. Be2 {[%emt 0:01:38]} O-O {[%emt 0:00:37]} 7. O-O {[%emt 0:00:04]} d5 {[%emt 0:02:31]} 8. cxd5 {[%emt 0:02:49]} exd5 {[%emt 0:01:27]} 9. b3 {[%emt 0:01:18] E14: Queen's Indian: Classical Variation (4 e3)} Nbd7 {[%emt 0:01:43]} 10. Bb2 {[%emt 0:00:30]} a6 {[%emt 0:01:23]} 11. Rc1 {[%emt 0:00:47]} Bd6 {[%emt 0:00:49]} 12. Bd3 {[%emt 0:06:48]} Re8 {[%emt 0:02:53]} 13. Qc2 {[%emt 0:02:19] LiveBook: 8 Games} (13. Ne2 Ne4 14. Ng3 g6 15. Qc2 Qe7 16. Ne5 Nxg3 17. hxg3 Nf6 18. Qe2 {½-½ (24) Malakhov,V (2690)-Wang,H (2690) China 2017}) 13... Ne4 {[%emt 0:04:19]} 14. a3 {[%emt 0:07:35]} Re6 $146 {[%emt 0:10:44]} ({Predecessor:} 14... Ndf6 15. Ne5 Nxc3 16. Qxc3 c5 17. Qc2 Qe7 18. Nf3 Ne4 19. dxc5 bxc5 {½-½ (60) Thuerauf,P (1917)-Osmanovic,F (2096) Nuremberg 2009}) 15. b4 {[%emt 0:06:39]} b5 {[%emt 0:11:52]} 16. Qe2 {[%emt 0:11:54]} Qe7 {[%emt 0:08:31]} 17. Rce1 {[%emt 0:12:23]} Re8 {[%emt 0:02:30]} 18. Nd1 {[%emt 0:00:46]} (18. g3 $15) 18... Rh6 {[%emt 0:14:12]} 19. g3 $2 {[%emt 0:04:01] [#]} (19. h3 $17) 19... Qe6 $1 {[%emt 0:06:28]} 20. Bxe4 {[%emt 0:07:15]} dxe4 {[%emt 0:00:15]} ({Weaker is} 20... Qxe4 21. Bc3 $17) 21. Nd2 {[%emt 0:08:26]} Bd5 {[%emt 0:04:15]} (21... Qh3 $142 {[%csl Gh6][%cal Rh3h2]} 22. f4 exf3 23. Rxf3 Bxf3 24. Nxf3 {[#]} Bxg3 $1 {[%mdl 512]} 25. hxg3 Rg6) 22. Nc3 {[%emt 0:03:12]} Qh3 {[%emt 0:03:10]} 23. f4 {[%emt 0:03:50]} exf3 $1 {[%emt 0:00:30]} 24. Qf2 $2 {[%emt 0:07:20]} (24. Nxf3 $19 Bc4 25. Qg2) 24... Rg6 {[%emt 0:02:14]} 25. Nxd5 {[%emt 0:02:46]} Bxg3 {[%emt 0:00:28]} 26. Nf4 {[%emt 0:01:03]} Bxh2+ {[%emt 0:00:42]} 0-1

[Event "WEM-KT 2018"]
[Site "Illertissen"]
[Date "2018.09.01"]
[Round "8"]
[White "Namyslo, Holger"]
[Black "Laengl, Juergen"]
[Result "1/2-1/2"]
[ECO "C18"]
[WhiteElo "2275"]
[BlackElo "2223"]
[Annotator "NA"]
[PlyCount "81"]
[EventDate "2018.08.25"]
[EventType "tourn"]
[EventCountry "GER"]
[SourceTitle "playchess.com"]
[Source "ChessBase"]
[SourceQuality "1"]
[TimeControl "40/6000+30:3000+30"]

1. e4 {[%emt 0:09:33]} e6 {[%emt 0:09:36]} 2. d4 {[%emt 0:00:05]} d5 {[%emt 0:00:07]} 3. Nc3 {[%emt 0:00:03]} Bb4 {[%emt 0:00:09]} 4. e5 {[%emt 0:00:05]} Ne7 {[%emt 0:00:17]} 5. a3 {[%emt 0:01:01]} Bxc3+ {[%emt 0:00:09]} 6. bxc3 {[%emt 0:00:06]} c5 {[%emt 0:00:11]} 7. Qg4 {[%emt 0:00:04]} O-O {[%emt 0:00:16]} 8. Bd3 {[%emt 0:00:32] LiveBook: 2001 Games} Nbc6 {[%emt 0:00:26]} 9. Qh5 {[%emt 0:04:24]} Nf5 {[%emt 0:20:03]} 10. Nf3 {[%emt 0:13:27] C18: French: 3 Nc3 Bb4: Main line: 7 h4 and 7 Qg4} f6 {[%emt 0:23:35]} (10... c4 11. g4 g6 12. Qh3 cxd3 13. gxf5 exf5 14. Bg5 f4 15. Qh6 f6 16. Bxf6 Rxf6 17. exf6 Qxf6 18. cxd3 {1-0 (50) Borzenko,A (2533)-Belchev,B (2352) ICCF email 2011}) 11. g4 {[%emt 0:29:15]} fxe5 {[%emt 0:00:34]} 12. gxf5 {[%emt 0:13:59]} e4 {[%emt 0:01:59]} 13. Ng5 {[%emt 0:01:38]} h6 {[%emt 0:00:58]} 14. Nxe4 {[%emt 0:04:42]} dxe4 {[%emt 0:00:11]} 15. Rg1 {[%emt 0:07:56]} Qf6 $146 {[%emt 0:10:28]} ({Predecessor:} 15... Qe7 16. Bc4 e3 17. Bxe3 Na5 18. Bxh6 Rf7 19. fxe6 {1-0 (19) McDonald,G-Malmstroem,J LSS email 2007}) 16. Bc4 {[%emt 0:07:18]} Qxf5 {[%emt 0:05:10]} 17. Qxf5 {[%emt 0:00:23]} Rxf5 {[%emt 0:00:49]} 18. Bxh6 {[%emt 0:00:01]} Kh7 {[%emt 0:04:01]} 19. Be3 {[%emt 0:04:29]} cxd4 {[%emt 0:05:40]} 20. cxd4 {[%emt 0:00:33]} e5 {[%emt 0:01:01]} 21. Rd1 {[%emt 0:03:58]} Bd7 {[%emt 0:16:28]} 22. Rg4 {[%emt 0:03:43]} Rh5 {[%emt 0:00:44]} 23. Rg2 {[%emt 0:00:28]} exd4 {[%emt 0:01:10]} 24. Bxd4 {[%emt 0:00:08]} Nxd4 {[%emt 0:00:08]} 25. Rxd4 {[%emt 0:00:01]} Bc6 {[%emt 0:00:14]} 26. Rd6 {[%emt 0:00:36]} Rh6 {[%emt 0:02:48]} 27. Rxh6+ {[%emt 0:00:16]} Kxh6 {[%emt 0:00:21]} 28. Rg3 {[%emt 0:00:20]} Rc8 {[%emt 0:00:32]} 29. Be6 {[%emt 0:00:10]} Re8 {[%emt 0:00:38]} 30. Bf5 {[%emt 0:00:18]} Re5 {[%emt 0:00:46]} 31. Bg4 {[%emt 0:01:12]} Rc5 {[%emt 0:01:00]} 32. Bd1 {[%emt 0:00:02]} Ba4 {[%emt 0:01:27]} 33. Kd2 {[%emt 0:00:23]} Rd5+ {[%emt 0:00:21]} 34. Kc1 {[%emt 0:00:07]} Rf5 {[%emt 0:00:07]} 35. f3 {[%emt 0:02:27]} e3 {[%emt 0:01:33]} 36. f4 {[%emt 0:00:09]} Rxf4 {[%emt 0:00:17]} 37. Rxe3 {[%emt 0:00:01]} Rh4 {[%emt 0:00:38]} 38. Re6+ $11 {[%emt 0:02:31]} Kh7 {[%emt 0:00:10]} 39. Re2 {[%emt 0:01:19]} Rh3 {[%emt 0:00:14]} 40. Kb2 {[%emt 0:00:16]} Bc6 {[%emt 0:01:07]} 41. Rf2 {[%emt 0:50:55]} 1/2-1/2